bitfinex-derivatives/quotes_SOLF0:USTF0_20251018
["timestamp","ask_amount","ask_price","bid_price","bid_amount"]
[1760779032243,4.22479466,185.69,185.63,1.84114749]
[1760779032447,1.84114749,185.7,185.63,1.84114749]
[1760779032648,4.2237623,185.69,185.63,1.84114749]
[1760779032847,6.47212103,185.72,185.63,6.68754749]
[1760779033054,4.22393092,185.71,185.64,2.72]
[1760779033355,4.22393092,185.7,185.64,2.72]
[1760779033568,4.8439,185.73,185.64,2.72]
[1760779033853,4.22203291,185.72,185.64,2.72]
[1760779034054,4.94054635,185.76,185.65,2.72]
[1760779034245,8.84931547,185.75,185.65,2.72]
[1760779034449,4.22158733,185.74,185.65,2.72]
[1760779034648,4.22158733,185.73,185.65,2.72]
[1760779034856,4.22158733,185.72,185.65,2.72]
[1760779035054,4.62537413,185.74,185.65,2.72]
[1760779035055,4.22158733,185.71,185.65,2.72]
[1760779035260,4.62537413,185.74,185.65,2.72]
[1760779035452,4.217387,185.73,185.65,2.72]
[1760779035653,4.62366792,185.76,185.65,2.72]
[1760779035847,9.06108363,185.75,185.65,2.72]
[1760779036051,4.21758363,185.74,185.65,2.72]
[1760779036251,4.62363517,185.78,185.65,2.72]
[1760779036456,4.2145374,185.77,185.65,2.72]
[1760779036661,4.2145374,185.76,185.65,2.72]
[1760779036861,4.2145374,185.75,185.65,2.72]
[1760779037151,4.8428,185.77,185.66,2.72]
[1760779037357,4.21453906,185.76,185.66,2.72]
[1760779037551,4.8428,185.77,185.66,2.72]
[1760779037753,4.21129338,185.76,185.66,2.72]
[1760779037950,4.8428,185.77,185.66,2.72]
[1760779038150,4.21129338,185.76,185.68,2.72]
[1760779038356,4.8428,185.77,185.68,2.72]
[1760779038548,4.20781529,185.76,185.68,2.72]
[1760779038749,4.20846888,185.79,185.69,4.8449]
[1760779038954,4.8421,185.8,185.7,2.72]
[1760779039148,4.20852194,185.79,185.7,2.72]
[1760779039349,54.43651717,185.84,185.7,2.72]
[1760779039553,4.20455808,185.83,185.7,2.72]
[1760779039759,4.20455808,185.82,185.7,2.72]
[1760779039955,9.04635808,185.81,185.71,4.8443]
[1760779040156,44.82,185.84,185.72,2.72]
[1760779040461,4.20478541,185.83,185.72,2.72]
[1760779040761,4.20478541,185.82,185.72,2.72]
[1760779040963,4.20478541,185.81,185.72,2.72]
[1760779041260,44.82,185.84,185.72,2.72]
[1760779041455,4.19748959,185.83,185.72,2.72]
[1760779041654,4.19748959,185.82,185.72,2.72]
[1760779041850,44.82,185.84,185.72,2.72]
[1760779042054,4.8421,185.8,185.72,2.72]
[1760779043551,4.8426,185.78,185.68,2.72]
[1760779044951,4.67597082,185.77,185.68,2.72]
[1760779046056,4.8436,185.74,185.68,2.72]
[1760779049264,4.8441,185.73,185.63,2.72]
[1760779049462,4.67597082,185.77,185.63,2.72]
[1760779050675,4.8443,185.72,185.64,2.72]
[1760779051777,4.8446,185.71,185.64,2.72]
[1760779052771,4.8439,185.73,185.64,2.72]
[1760779052977,4.67597082,185.8,185.66,4.8454]
[1760779053275,4.67597082,185.8,185.67,2.72]
[1760779053675,4.8433,185.76,185.64,2.72]
[1760779053876,4.67597082,185.8,185.64,2.72]
[1760779054081,4.67597082,185.8,185.67,2.72]
[1760779054274,4.18114169,185.81,185.67,2.72]
[1760779054470,49.43597082,185.83,185.67,2.72]
[1760779054674,4.18168845,185.82,185.67,2.72]
[1760779054983,4.8426,185.78,185.69,4.8446]
[1760779055175,4.8426,185.78,185.7,2.72]
[1760779056075,4.8421,185.8,185.7,7.5644]
[1760779057071,4.8421,185.8,185.72,2.72]
[1760779057577,4.8415,185.82,185.7,2.72]
[1760779058175,4.8415,185.82,185.74,2.72]
[1760779059285,8.94143115,185.84,185.75,2.72]
[1760779059483,4.09984873,185.86,185.75,2.72]
[1760779059678,4.09984873,185.85,185.75,2.72]
[1760779059878,4.67597082,185.87,185.75,2.72]
[1760779060077,4.09975069,185.86,185.75,2.72]
[1760779060280,4.09975069,185.85,185.75,2.72]
[1760779060480,8.77572151,185.84,185.75,2.72]
[1760779060782,4.10062142,185.83,185.75,2.72]
[1760779060983,4.67597082,185.84,185.75,2.72]
[1760779061178,4.10059744,185.83,185.75,2.72]
[1760779061379,1.83485198,185.8,185.76,2.87]
[1760779062280,1.83485198,185.8,185.74,6.67815198]
[1760779062481,1.83485198,185.8,185.75,2.87]
[1760779062787,1.83485198,185.8,185.77,2.87]
[1760779063884,1.83485198,185.8,185.75,4.8431]
[1760779063885,1.83485198,185.8,185.76,2.87]
[1760779064087,6.67655198,185.82,185.76,2.87]
[1760779064882,1.83485198,185.8,185.76,2.87]
[1760779065583,1.83485198,185.8,185.74,2.87]
[1760779067290,6.67705198,185.8,185.74,2.87]
[1760779069384,6.67705198,185.8,185.73,4.8437]
[1760779069385,4.11142281,185.79,185.75,2.87]
[1760779069586,6.67705198,185.8,185.74,2.87]
[1760779069786,4.11161922,185.79,185.74,2.87]
[1760779070084,6.67705198,185.8,185.74,2.87]
[1760779070284,4.11162549,185.79,185.75,2.87]
[1760779070487,4.11162549,185.78,185.74,2.87]
[1760779070684,6.67705198,185.8,185.74,2.87]
[1760779070988,4.11714853,185.79,185.74,2.87]
[1760779071190,4.11714853,185.78,185.75,2.87]
[1760779071389,6.67705198,185.8,185.74,2.87]
[1760779071585,4.12399262,185.79,185.74,1.83485198]
[1760779071786,4.12399262,185.78,185.74,1.83485198]
[1760779071987,1.83485198,185.82,185.75,2.87]
[1760779072191,4.12435763,185.81,185.76,1.83485198]
[1760779072486,8.85114389,185.8,185.77,2.87]
[1760779072787,4.12435763,185.79,185.77,2.87]
[1760779073091,4.12435763,185.78,185.77,2.87]
[1760779073290,4.12435763,185.78,185.74,2.87]
[1760779073495,4.12435763,185.77,185.74,2.87]
[1760779073788,4.12435763,185.76,185.75,2.87]
[1760779073987,6.77539833,185.81,185.75,2.87]
[1760779074191,8.86674941,185.8,185.74,1.83485198]
[1760779074387,8.86674941,185.79,185.75,2.87]
[1760779074591,8.86674941,185.78,185.75,2.87]
[1760779074791,4.13036426,185.77,185.75,2.87]
[1760779074992,4.94054635,185.81,185.74,9.54825198]
[1760779075185,4.13501304,185.8,185.74,9.54825198]
[1760779075390,4.13501304,185.79,185.75,2.87]
[1760779075692,4.13501304,185.78,185.75,2.87]
[1760779075894,4.13501304,185.78,185.74,6.67825198]
[1760779075895,4.13501304,185.77,185.74,4.8434]
[1760779076191,4.13501304,185.76,185.72,2.87]
[1760779076398,4.13501304,185.75,185.72,2.87]
[1760779076599,4.13501304,185.74,185.72,2.87]
[1760779076894,4.13501304,185.73,185.72,2.87]
[1760779078296,4.94054635,185.8,185.75,2.87]
[1760779078493,4.14776228,185.79,185.75,2.87]
[1760779078687,4.14776228,185.78,185.75,2.87]
[1760779078892,4.14776228,185.77,185.75,4.8432]
[1760779079095,4.94054635,185.8,185.76,2.87]
[1760779079289,4.14776083,185.79,185.75,1.83485198]
[1760779079494,4.14776083,185.78,185.73,4.70485198]
[1760779079793,4.14776083,185.77,185.73,4.70485198]
[1760779079993,4.14776083,185.76,185.73,4.70485198]
[1760779080192,4.14776083,185.75,185.73,4.70485198]
[1760779080392,4.14915483,185.74,185.73,4.70485198]
[1760779080793,4.14915483,185.74,185.73,4.8437]
[1760779081101,4.14915483,185.74,185.73,1.83485198]
[1760779081298,4.14915483,185.74,185.72,44.74]
[1760779081492,4.94054635,185.78,185.72,44.74]
[1760779081693,4.14922645,185.77,185.73,4.70485198]
[1760779081888,4.14922645,185.76,185.75,1.83485198]
[1760779082090,4.14922645,185.76,185.75,4.70485198]
[1760779083497,4.14922645,185.76,185.75,2.87]
[1760779083700,2.59,185.86,185.76,2.87]
[1760779083891,2.59,185.84,185.76,50.49618917]
[1760779084295,2.59,185.84,185.78,4.8423]
[1760779084701,2.59,185.84,185.79,2.86618917]
[1760779084898,6.62352472,185.89,185.8,2.75]
[1760779084899,2.62,185.88,185.8,2.75]
[1760779085099,2.62,185.9,185.86,2.86618917]
[1760779085399,2.62,185.93,185.86,4.8404]
[1760779085704,4.04954311,185.92,185.86,4.8404]
[1760779085899,2.62,185.93,185.86,4.8404]
[1760779086103,2.62,185.91,185.84,4.8409]
[1760779086299,2.62,185.91,185.83,2.75]
[1760779088103,2.62,185.91,185.85,4.8405]
[1760779089907,2.62,185.91,185.83,7.5912]
[1760779090211,2.62,185.94,185.81,44.86]
[1760779090507,2.62,185.88,185.81,44.86]
[1760779090902,2.62,185.88,185.8,10.4286985]
[1760779091907,4.8399,185.89,185.8,10.4286985]
[1760779092107,48.42352472,185.97,185.79,27.4822]
[1760779092108,2.71,185.87,185.79,27.4822]
[1760779092803,2.71,185.86,185.79,22.64]
[1760779095407,2.71,185.86,185.79,27.4821]
[1760779095613,2.71,185.86,185.79,30.2521]
[1760779096308,11.56066214,185.9,185.82,4.8413]
[1760779096514,7.5496,185.9,185.82,7.6113]
[1760779096715,4.00011828,185.95,185.82,2.77]
[1760779097014,7.5477,185.97,185.88,4.8397]
[1760779097207,4.01318165,185.96,185.89,2.77]
[1760779097406,7.5477,185.97,185.88,4.8397]
[1760779097608,2.71,185.95,185.88,4.8397]
[1760779098408,2.71,185.95,185.89,7.6095]
[1760779098812,4.8373,185.98,185.89,7.6095]
[1760779099414,11.55874858,185.97,185.89,2.77]
[1760779099615,2.71,185.97,185.89,2.77]
[1760779100017,4.838,185.96,185.89,2.77]
[1760779102412,2.71,185.97,185.89,2.77]
[1760779103018,11.54734667,186.02,185.94,2.77]
[1760779103323,4.00863209,186.01,185.94,2.77]
[1760779103520,2.71,186.02,185.94,2.77]
[1760779103712,4.00655494,186.01,185.94,2.77]
[1760779103913,2.71,186.02,185.94,7.6081]
[1760779104118,2.71,186.02,185.94,2.77]
[1760779106216,7.5465,186.02,185.94,2.77]
[1760779106520,2.71,186.07,185.97,7.6786985]
[1760779106721,4.00040103,186.06,185.97,10.4486985]
[1760779106916,2.71,186.07,185.97,10.4486985]
[1760779107317,4.8355,186.06,185.97,10.4486985]
[1760779107518,2.71,186.07,185.97,10.4486985]
[1760779108920,7.5452,186.07,185.97,15.2860985]
[1760779109522,2.71,186.04,185.97,15.2860985]
[1760779111322,4.835,186.07,185.98,2.77]
[1760779111526,4.835,186.07,185.98,7.6071]
[1760779112328,4.835,186.07,185.99,2.77]
[1760779112622,4.8355,186.05,185.97,7.6786985]
[1760779112823,4.8355,186.05,185.93,62.0]
[1760779112824,2.71,186.08,185.92,2.77]
[1760779113130,2.71,186.06,185.92,2.77]
[1760779113328,2.71,186.04,185.92,2.77]
[1760779113626,2.71,185.99,185.92,2.77]
[1760779114021,2.71,185.99,185.86,7.6103]
[1760779114218,2.71,186.03,185.86,7.6103]
[1760779114419,2.71,186.01,185.86,7.6103]
[1760779114618,6.69976031,186.01,185.86,2.77]
[1760779114828,2.71,186.01,185.86,2.77]
[1760779115018,4.8381,185.96,185.87,4.8399]
[1760779115223,7.5481,185.96,185.87,4.8399]
[1760779115424,2.71,185.96,185.86,2.77]
[1760779117926,7.5479,185.96,185.87,4.84]
[1760779118131,2.71,185.96,185.87,4.84]
[1760779118932,4.8383,185.95,185.87,4.84]
[1760779120527,4.8383,185.95,185.86,2.77]
[1760779120528,2.71,185.96,185.86,2.77]
[1760779120728,4.8386,185.94,185.86,2.77]
[1760779120928,7.5486,185.94,185.86,2.77]
[1760779121734,3.98583199,185.99,185.86,2.77]
[1760779121932,11.66358565,186.02,185.84,7.6786985]
[1760779121933,2.62,185.97,185.84,7.6786985]
[1760779122129,6.60583199,185.97,185.83,2.63]
[1760779122324,4.8391,185.92,185.83,2.63]
[1760779122726,4.8391,185.92,185.84,4.8408]
[1760779122930,4.8391,185.92,185.85,2.63]
[1760779123134,7.4584,185.94,185.85,2.63]
[1760779123522,7.4584,185.94,185.86,4.8402]
[1760779123834,7.4584,185.94,185.87,2.63]
[1760779124037,2.62,185.94,185.87,7.47]
[1760779127533,2.62,185.94,185.88,4.8398]
[1760779127938,4.8379,185.96,185.89,2.63]
[1760779130438,2.62,185.99,185.86,4.8404]
[1760779130636,2.62,185.97,185.86,4.8404]
[1760779130941,2.62,185.95,185.86,4.8404]
[1760779131637,2.62,185.92,185.86,4.8404]
[1760779131843,2.62,185.92,185.85,2.63]
[1760779133639,2.62,185.9,185.85,2.63]
[1760779133840,2.62,185.9,185.84,2.63]
[1760779134437,10.62828848,185.97,185.84,2.63]
[1760779134638,4.00153049,185.96,185.84,2.63]
[1760779134839,2.62,185.95,185.84,2.63]
[1760779135643,4.839,185.92,185.85,4.8405]
[1760779136245,4.8393,185.91,185.84,2.63]
[1760779137442,4.8393,185.91,185.85,2.63]
[1760779137844,4.8393,185.91,185.85,7.4706]
[1760779138045,7.4587,185.93,185.85,4.8406]
[1760779138248,7.4587,185.93,185.86,2.63]
[1760779139946,7.4587,185.93,185.86,7.4703]
[1760779141239,7.4587,185.93,185.84,62.0]
[1760779141240,2.62,185.97,185.85,2.63]
[1760779141938,4.838,185.96,185.89,4.8395]
[1760779142182,4.838,185.96,185.89,7.4695]
[1760779142343,2.62,185.97,185.89,2.63]
[1760779143046,4.52896948,186.0,185.92,7.4687]
[1760779143246,2.62,186.05,185.92,7.4687]
[1760779143447,2.62,186.03,185.92,7.4687]
[1760779143640,2.62,186.01,185.92,7.4687]
[1760779143841,4.8372,185.99,185.92,7.4687]
[1760779144849,7.6072,185.99,185.92,7.4687]
[1760779145245,2.77,185.97,185.9,4.8393]
[1760779145646,7.6078,185.97,185.9,4.8393]
[1760779145845,2.77,185.97,185.9,4.8393]
[1760779147043,4.838,185.96,185.9,4.8393]
[1760779151454,2.61,185.95,185.91,1.83134548]
[1760779152061,2.61,185.95,185.91,4.65134548]
[1760779153567,2.61,185.95,185.92,2.82]
[1760779155861,2.61,185.95,185.91,1.83134548]
[1760779156061,2.61,185.95,185.92,2.82]
[1760779157260,4.838,185.96,185.92,2.82]
[1760779157466,2.61,186.01,185.95,1.83134548]
[1760779157665,11.16959391,186.0,185.97,1.83134548]
[1760779157865,4.02284884,185.99,185.97,1.83134548]
[1760779158069,4.02253542,185.98,185.94,1.83134548]
[1760779158264,2.61,185.96,185.92,1.83134548]
[1760779158461,2.61,185.99,185.92,4.65134548]
[1760779158665,12.63673586,185.98,185.92,4.65134548]
[1760779158864,6.63235491,185.97,185.93,2.82]
[1760779159064,2.61,185.99,185.92,1.83134548]
[1760779159257,2.61,185.94,185.92,1.83134548]
[1760779159658,2.61,185.94,185.9,1.83134548]
[1760779159861,2.61,185.94,185.91,2.82]
[1760779161160,4.838,185.96,185.92,1.83134548]
[1760779161565,7.448,185.96,185.92,4.65134548]
[1760779161963,4.838,185.96,185.92,4.65134548]
[1760779162166,5.85241037,185.95,185.83,10.01039067]
[1760779162369,2.61,185.92,185.84,1.83134548]
[1760779162569,2.61,185.9,185.82,4.65134548]
[1760779162765,2.61,185.88,185.82,4.65134548]
[1760779162961,1.83134548,185.87,185.8,1.83134548]
[1760779163764,2.61,185.86,185.8,1.83134548]
[1760779164174,2.61,185.86,185.78,2.82]
[1760779164367,4.8409,185.85,185.79,1.83134548]
[1760779164567,2.61,185.86,185.81,1.83134548]
[1760779164861,4.44134548,185.89,185.81,4.65134548]
[1760779165264,4.44134548,185.89,185.82,1.83134548]
[1760779165572,4.09025609,185.88,185.82,1.83134548]
[1760779165771,4.44134548,185.89,185.82,1.83134548]
[1760779166071,8.93050713,185.88,185.82,1.83134548]
[1760779166268,4.84,185.88,185.82,1.83134548]
[1760779166869,1.83134548,185.87,185.79,1.83134548]
[1760779167071,2.61,185.86,185.79,1.83134548]
[1760779167974,4.8409,185.85,185.79,1.83134548]
[1760779168673,2.61,185.86,185.8,2.82]
[1760779168971,2.61,185.9,185.82,2.82]
[1760779169166,4.8397,185.89,185.83,1.83134548]
[1760779171873,2.61,185.87,185.83,1.83134548]
[1760779172069,1.83134548,185.87,185.79,4.65134548]
[1760779172272,2.61,185.86,185.79,4.65134548]
[1760779174072,7.4507,185.86,185.79,4.65134548]
[1760779181275,2.83,185.82,185.79,2.82]
[1760779183681,2.83,185.81,185.77,1.83134548]
[1760779183870,2.83,185.81,185.78,2.73]
[1760779184075,2.83,185.84,185.78,2.73]
[1760779184470,2.83,185.84,185.79,1.83134548]
[1760779184683,2.83,185.84,185.8,2.73]
[1760779185776,2.83,185.84,185.79,1.83134548]
[1760779185982,2.83,185.84,185.8,2.73]
[1760779186983,7.6702,185.87,185.79,9.40344548]
[1760779187784,4.8406,185.86,185.79,9.40344548]
[1760779189990,4.8406,185.86,185.8,2.73]
[1760779190586,4.8406,185.86,185.81,1.83134548]
[1760779191093,4.8406,185.86,185.82,2.73]
[1760779191388,4.8406,185.86,185.81,1.83134548]
[1760779191588,4.8406,185.86,185.82,2.73]
[1760779191990,7.6706,185.86,185.82,2.73]
[1760779192189,4.8401,185.88,185.82,2.73]
[1760779193986,2.83,185.92,185.85,4.56134548]
[1760779195087,4.8392,185.91,185.85,4.56134548]
[1760779196189,2.83,185.9,185.83,1.83134548]
[1760779196387,2.83,185.9,185.82,7.5713]
[1760779197188,2.83,185.88,185.82,7.5713]
[1760779198192,1.83134548,185.89,185.83,2.73]
[1760779198193,7.6703,185.87,185.83,2.73]
[1760779198385,7.6703,185.87,185.84,2.73]
[1760779198588,4.8403,185.87,185.82,6.67264548]
[1760779198791,4.8403,185.87,185.85,1.83134548]
[1760779199291,2.83,185.88,185.85,4.56134548]
[1760779199594,7.82019569,185.95,185.88,2.73]
[1760779199791,4.13988163,185.94,185.92,1.83134548]
[1760779199987,2.83,185.99,185.92,4.56134548]
[1760779200192,6.97129149,185.98,185.96,1.83134548]
[1760779200389,2.83,185.98,185.96,1.83134548]
[1760779200884,4.99019569,186.03,185.94,1.83134548]
[1760779200885,2.83,186.01,185.94,1.83134548]
[1760779201086,4.8375,185.98,185.94,1.83134548]
[1760779201285,2.83,185.97,185.94,1.83134548]
[1760779201487,4.8375,185.98,185.96,1.83134548]
[1760779202789,2.83,186.03,185.97,1.83134548]
[1760779202993,2.83,186.01,185.97,1.83134548]
[1760779203190,2.83,186.01,185.97,4.56134548]
[1760779203393,4.1440042,186.0,185.98,2.73]
[1760779203689,2.83,186.01,185.97,1.83134548]
[1760779203690,2.83,186.03,185.97,4.56134548]
[1760779203890,2.83,186.07,186.0,2.73]
[1760779204194,4.14506051,186.06,186.0,2.73]
[1760779204394,4.14506051,186.05,185.99,4.56134548]
[1760779204592,2.83,186.03,185.96,4.56134548]
[1760779204888,4.69134548,186.01,185.92,1.83134548]
[1760779205093,1.27144446,186.0,185.98,2.86]
[1760779205396,1.27144446,186.0,185.86,106.76]
[1760779205397,2.86,186.09,186.01,2.86]
[1760779206392,2.86,186.13,186.03,2.86]
[1760779206596,2.86,186.13,186.05,2.85810156]
[1760779206792,2.86,186.13,186.03,2.86]
[1760779206793,2.86,186.13,186.04,2.85810156]
[1760779207399,4.8339,186.12,186.04,2.85810156]
[1760779208894,2.86,186.13,186.04,2.85810156]
[1760779209192,2.86,186.13,186.08,2.86]
[1760779209390,2.86,186.2,186.07,2.85810156]
[1760779209596,2.86,186.2,186.1,5.71810156]
[1760779209795,9.03749373,186.24,186.1,5.71810156]
[1760779210099,2.86,186.15,185.97,2.86]
[1760779210297,2.86,186.15,186.03,2.86]
[1760779210788,4.834,186.11,186.03,2.86]
[1760779211097,2.86,186.12,186.03,2.86]
[1760779211288,2.86,186.12,186.03,4.836]
[1760779211493,2.86,186.12,186.05,2.85810156]
[1760779211898,2.87,186.16,186.06,2.77]
[1760779212987,2.87,186.16,186.08,5.62810156]
[1760779213591,2.87,186.16,186.08,2.85810156]
[1760779213792,2.87,186.18,186.09,7.6044]
[1760779214700,2.87,186.18,186.09,2.77]
[1760779215301,2.87,186.18,185.97,44.82]
[1760779215302,2.85810156,186.2,186.06,2.77]
[1760779215504,2.85810156,186.17,186.06,2.77]
[1760779215697,2.87,186.16,186.06,2.77]
[1760779215894,7.7029,186.16,186.06,2.77]
[1760779216096,5.72810156,186.16,186.06,2.77]
[1760779216397,2.87,186.16,186.06,2.77]
[1760779216598,2.87,186.16,186.06,5.62810156]
[1760779216899,4.8334,186.13,186.06,5.62810156]
[1760779217198,7.7034,186.13,186.06,5.62810156]
[1760779217707,2.87,186.18,186.09,5.62810156]
[1760779218203,2.87,186.18,186.1,2.77]
[1760779218796,2.87,186.18,186.11,2.77]
[1760779223106,2.87,186.21,186.11,2.77]
[1760779224103,2.87,186.21,186.13,2.77]
[1760779225907,4.8319,186.19,186.13,2.77]
[1760779226107,2.87,186.18,186.1,7.6042]
[1760779227199,2.87,186.18,186.11,7.6038]
[1760779227404,4.8319,186.19,186.11,7.6038]
[1760779228906,2.87,186.21,186.14,2.77]
[1760779229103,2.87,186.26,186.09,2.77]
[1760779229402,2.87,186.13,186.05,2.77]
[1760779230707,7.7036,186.13,186.05,7.6053]
[1760779231606,4.8338,186.12,186.05,2.77]
[1760779231813,2.87,186.13,186.05,2.77]
[1760779232307,7.7036,186.13,186.05,2.77]
[1760779233908,4.8339,186.12,186.05,2.77]
[1760779234806,7.65939923,186.2,186.02,4.8362]
[1760779234807,4.8341,186.11,186.02,4.8362]
[1760779235008,2.87,186.1,186.02,7.6062]
[1760779235699,7.7044,186.1,186.02,2.77]
[1760779235903,2.87,186.1,186.02,2.77]
[1760779236604,2.87,186.1,186.03,4.8359]
[1760779237311,7.7044,186.1,186.02,2.77]
[1760779239107,7.7044,186.1,186.02,7.6061]
[1760779239315,7.7044,186.1,186.02,10.46360763]
[1760779239808,7.7044,186.1,186.03,4.8358]
[1760779246119,4.0274786,186.09,186.03,4.8358]
[1760779246320,7.7044,186.1,186.02,5.62750763]
[1760779246526,4.03051714,186.09,186.02,5.62750763]
[1760779246718,7.7044,186.1,186.02,5.62750763]
[1760779246918,4.03117852,186.09,186.02,5.62750763]
[1760779247118,7.7044,186.1,186.02,5.62750763]
[1760779247318,4.03434662,186.09,186.02,5.62750763]
[1760779247523,7.7044,186.1,186.02,5.62750763]
[1760779247722,4.03434382,186.09,186.02,5.62750763]
[1760779247923,7.7044,186.1,186.02,5.62750763]
[1760779248124,4.03434382,186.09,186.02,5.62750763]
[1760779248325,4.03434382,186.08,186.02,5.62750763]
[1760779248516,7.7044,186.1,186.02,5.62750763]
[1760779248721,4.03679485,186.09,186.02,5.62750763]
[1760779248919,4.03679485,186.08,186.02,10.46360763]
[1760779249222,7.7044,186.1,186.02,10.46360763]
[1760779249517,4.03834671,186.09,186.02,10.46360763]
[1760779249721,4.03834671,186.08,186.02,10.46360763]
[1760779249921,7.7044,186.1,186.02,10.46360763]
[1760779250227,4.03835197,186.09,186.02,10.46360763]
[1760779250423,4.03835197,186.08,186.02,10.46360763]
[1760779250725,7.7044,186.1,186.02,10.46360763]
[1760779251025,4.04012458,186.09,186.02,10.46360763]
[1760779251226,4.04012458,186.08,186.02,10.46360763]
[1760779251428,7.7044,186.1,186.02,10.46360763]
[1760779251727,4.04094416,186.09,186.02,10.46360763]
[1760779251931,4.04094416,186.08,186.02,10.46360763]
[1760779252118,7.7044,186.1,186.02,10.46360763]
[1760779252322,4.0410359,186.09,186.02,10.46360763]
[1760779252523,7.7044,186.1,186.02,10.46360763]
[1760779252723,4.04113358,186.09,186.02,10.46360763]
[1760779252924,7.7044,186.1,186.02,10.46360763]
[1760779253127,4.04123127,186.09,186.02,10.46360763]
[1760779253323,7.7044,186.1,186.02,10.46360763]
[1760779253523,4.04132917,186.09,186.02,10.46360763]
[1760779253726,7.7044,186.1,186.02,10.46360763]
[1760779253926,4.04132528,186.09,186.02,10.46360763]
[1760779254128,7.7044,186.1,186.02,10.46360763]
[1760779254326,4.0413574,186.09,186.02,10.46360763]
[1760779254523,7.7044,186.1,186.02,10.46360763]
[1760779254827,4.04119921,186.09,186.02,10.46360763]
[1760779255028,7.7044,186.1,186.02,10.46360763]
[1760779255223,7.7044,186.1,186.01,44.72]
[1760779255224,4.04120113,186.09,186.06,2.72]
[1760779255424,2.73,186.09,186.06,2.72]
[1760779256031,2.73,186.1,186.05,2.85750763]
[1760779256233,2.73,186.13,186.05,2.85750763]
[1760779256431,2.73,186.11,186.05,2.85750763]
[1760779256630,2.73,186.09,186.05,2.85750763]
[1760779256827,2.73,186.13,186.05,2.85750763]
[1760779257023,2.73,186.11,186.05,2.85750763]
[1760779257228,8.0880441,186.12,186.05,2.85750763]
[1760779257229,4.0410443,186.1,186.05,5.57750763]
[1760779257423,4.04680787,186.14,186.05,5.57750763]
[1760779257626,8.08766027,186.13,186.05,5.57750763]
[1760779257834,2.73,186.11,186.05,5.57750763]
[1760779258132,2.73,186.13,186.01,47.44]
[1760779258433,2.73,186.11,186.02,2.85750763]
[1760779258636,2.73,186.09,186.02,2.85750763]
[1760779259128,7.5646,186.09,186.02,7.69370763]
[1760779259330,7.5646,186.09,186.03,2.72]
[1760779259928,2.73,186.09,186.03,2.72]
[1760779260134,2.73,186.1,186.05,2.72]
[1760779260336,4.8341,186.11,186.05,2.72]
[1760779260633,2.73,186.1,186.05,2.72]
[1760779260834,2.73,186.09,186.05,2.72]
[1760779261036,2.73,186.08,186.05,2.72]
[1760779261436,4.8344,186.1,186.05,2.72]
[1760779261932,2.73,186.09,186.05,2.72]
[1760779262233,2.73,186.09,185.97,62.0]
[1760779262234,2.73,186.11,186.01,2.72]
[1760779262433,2.73,186.09,186.01,2.72]
[1760779262832,2.73,186.05,186.01,2.72]
[1760779263130,2.73,186.08,185.98,7.5572]
[1760779263334,2.73,186.06,185.98,7.5572]
[1760779263529,2.73,186.05,185.98,7.5572]
[1760779263926,7.5657,186.05,185.98,7.5572]
[1760779265232,7.5657,186.05,185.98,2.72]
[1760779265233,4.836,186.03,185.98,2.72]
[1760779265634,2.76,186.01,185.98,2.72]